fUSD/lending_fUSD_20250811
["ID","MTS","AMOUNT","RATE_DAILY","PERIOD"]
[378621349,1754928640714,-400.0,0.00016438,2]
[378621350,1754928640723,-589.75,0.00016438,2]
[378621351,1754928640733,-443.55,0.00016438,2]
[378621352,1754928640743,-400.0,0.00016438,2]
[378621353,1754928640752,-400.0,0.00016438,2]
[378621354,1754928640761,-400.0,0.00016438,2]
[378621355,1754928640771,-493.43,0.00016438,2]
[378621356,1754928640780,-546.93,0.00016438,2]
[378621357,1754928640790,-400.0,0.00016438,2]
[378621358,1754928640799,-400.0,0.00016438,2]
[378621359,1754928640809,-788.2,0.00016438,2]
[378621360,1754928640819,-400.0,0.00016438,2]
[378621361,1754928640829,-400.0,0.00016438,2]
[378621362,1754928640839,-401.3474603,0.00016438,2]
[378621363,1754928640849,-400.0,0.00016438,2]
[378621364,1754928640859,-400.0,0.00016438,2]
[378621365,1754928640869,-400.0,0.00016438,2]
[378621366,1754928640878,-608.47,0.00016438,2]
[378621367,1754928640888,-101.87165116,0.00016438,2]
[378621368,1754928640914,-107.49317587,0.00016438,2]
[378621369,1754928640924,-400.0,0.00016438,2]
[378621370,1754928640933,-1682.66,0.00016438,2]
[378621371,1754928640943,-400.0,0.00016438,2]
[378621372,1754928640952,-588.23,0.00016438,2]
[378621373,1754928640962,-210.69039446,0.00016438,2]
[378621375,1754928641503,-189.30960554,0.00016438,2]
[378621376,1754928641514,-400.0,0.00016438,2]
[378621377,1754928641523,-400.0,0.00016438,2]
[378621378,1754928641533,-490.79,0.00016438,2]
[378621379,1754928641543,-589.35,0.00016438,2]
[378621380,1754928641553,-689.20253466,0.00016438,2]
[378621381,1754928641566,-27.52746534,0.00016438,2]
[378621382,1754928641576,-584.42,0.00016438,2]
[378621383,1754928641587,-400.0,0.00016438,2]
[378621384,1754928641597,-627.74,0.00016438,2]
[378621385,1754928641607,-400.0,0.00016438,2]
[378621386,1754928641618,-400.0,0.00016438,2]
[378621387,1754928641628,-400.0,0.00016438,2]
[378621388,1754928641638,-400.0,0.00016438,2]
[378621389,1754928641648,-400.0,0.00016438,2]
[378621390,1754928641657,-540.5,0.00016438,2]
[378621391,1754928641673,-400.0,0.00016438,2]
[378621392,1754928641683,-400.0,0.00016438,2]
[378621393,1754928641692,-400.0,0.00016438,2]
[378621394,1754928641702,-400.0,0.00016438,2]
[378621395,1754928641711,-479.91,0.00016438,2]
[378621396,1754928641721,-400.0,0.00016438,2]
[378621397,1754928641731,-508.26,0.00016438,2]
[378621398,1754928641740,-595.42,0.00016438,2]
[378621399,1754928641751,-400.0,0.00016438,2]
[378621400,1754928641761,-400.0,0.00016438,2]
[378621401,1754928641770,-400.0,0.00016438,2]
[378621402,1754928641779,-400.0,0.00016438,2]
[378621403,1754928641789,-438.1,0.00016438,2]
[378621404,1754928641799,-239.54746356,0.00016438,2]
[378621405,1754928641812,-1828.31253644,0.00016438,2]
[378621406,1754928641822,-400.0,0.00016438,2]
[378621407,1754928641831,-400.0,0.00016438,2]
[378621408,1754928641841,-376.44660104,0.00016438,2]
[378621409,1754928641853,-312.28339896,0.00016438,2]
[378621410,1754928641863,-487.13729451,0.00016438,2]
[378621411,1754928641873,-400.0,0.00016438,2]
[378621412,1754928641882,-400.0,0.00016438,2]
[378621413,1754928641891,-400.0,0.00016438,2]
[378621414,1754928641901,-400.0,0.00016438,2]
[378621415,1754928641913,-400.0,0.00016438,2]
[378621416,1754928641922,-400.0,0.00016438,2]
[378621417,1754928641932,-400.0,0.00016438,2]
[378621418,1754928641941,-459.81,0.00016438,2]
[378621419,1754928641950,-400.0,0.00016438,2]
[378621420,1754928641959,-779.32,0.00016438,2]
[378621421,1754928641971,-400.0,0.00016438,2]
[378621422,1754928641980,-449.23,0.00016438,2]
[378621423,1754928641989,-400.0,0.00016438,2]
[378621424,1754928641999,-2643.53,0.00016438,2]
[378621425,1754928642008,-417.52,0.00016438,2]
[378621426,1754928642017,-1216.89,0.00016438,2]
[378621427,1754928642027,-400.0,0.00016438,2]
[378621428,1754928642037,-297.85206896,0.00016438,2]
[378621429,1754928642050,-102.14793104,0.00016438,2]
[378621430,1754928642060,-400.0,0.00016438,2]
[378621431,1754928642069,-400.0,0.00016438,2]
[378621432,1754928642080,-470.53,0.00016438,2]
[378621433,1754928642092,-501.25,0.00016438,2]
[378621434,1754928642101,-243.5096623,0.00016438,2]
[378621435,1754928642113,-156.4903377,0.00016438,2]
[378621436,1754928642122,-400.0,0.00016438,2]
[378621437,1754928642133,-864.54,0.00016438,2]
[378621438,1754928642143,-948.38,0.00016438,2]
[378621439,1754928642152,-600.25,0.00016438,2]
[378621440,1754928642165,-400.0,0.00016438,2]
[378621441,1754928642174,-400.0,0.00016438,2]
[378621442,1754928642184,-400.0,0.00016438,2]
[378621443,1754928642194,-400.0,0.00016438,2]
[378621444,1754928642204,-400.0,0.00016438,2]
[378621445,1754928642213,-400.0,0.00016438,2]
[378621446,1754928642223,-467.28,0.00016438,2]
[378621447,1754928642232,-400.0,0.00016438,2]
[378621448,1754928642241,-400.0,0.00016438,2]
[378621449,1754928642251,-493.8,0.00016438,2]
[378621450,1754928642261,-558.05,0.00016438,2]
[378621451,1754928642271,-708.29,0.00016438,2]
[378621452,1754928642281,-1150.78,0.00016438,2]
[378621453,1754928642290,-456.31,0.00016438,2]
[378621454,1754928642300,-400.0,0.00016438,2]
[378621455,1754928642310,-192.72542385,0.00016438,2]
[378621456,1754928642361,-305.96457615,0.00016438,2]
[378621457,1754928642370,-400.0,0.00016438,2]
[378621458,1754928642380,-400.0,0.00016438,2]
[378621459,1754928642389,-400.0,0.00016438,2]
[378621460,1754928642398,-2481.92,0.00016438,2]
[378621461,1754928642407,-400.0,0.00016438,2]
[378621462,1754928642421,-531.6,0.00016438,2]
[378621463,1754928642430,-674.52,0.00016438,2]
[378621464,1754928642440,-931.61,0.00016438,2]
[378621465,1754928642450,-402.62,0.00016438,2]
[378621466,1754928642459,-400.0,0.00016438,2]
[378621467,1754928642469,-400.0,0.00016438,2]
[378621468,1754928642478,-400.0,0.00016438,2]
[378621469,1754928642770,-400.0,0.00016438,2]
[378621470,1754928642780,-400.0,0.00016438,2]
[378621471,1754928642791,-492.2,0.00016438,2]
[378621472,1754928642801,-1897.1,0.00016438,2]
[378621473,1754928642811,-400.0,0.00016438,2]
[378621474,1754928642821,-711.76,0.00016438,2]
[378621475,1754928642831,-400.0,0.00016438,2]
[378621476,1754928642841,-682.68,0.00016438,2]
[378621477,1754928642852,-697.3,0.00016438,2]
[378621478,1754928642862,-824.45,0.00016438,2]
[378621479,1754928642872,-400.0,0.00016438,2]
[378621480,1754928642883,-485.45,0.00016438,2]
[378621481,1754928642892,-953.06,0.00016438,2]
[378621482,1754928642902,-400.0,0.00016438,2]
[378621483,1754928642918,-596.5,0.00016438,2]
[378621484,1754928642928,-861.68,0.00016438,2]
[378621485,1754928642939,-500.55,0.00016438,2]
[378621486,1754928642949,-400.0,0.00016438,2]
[378621487,1754928642960,-400.0,0.00016438,2]
[378621488,1754928642969,-658.62,0.00016438,2]
[378621489,1754928642979,-400.0,0.00016438,2]
[378621490,1754928642989,-1321.09,0.00016438,2]
[378621491,1754928642998,-400.0,0.00016438,2]
[378621492,1754928643008,-400.0,0.00016438,2]
[378621493,1754928643017,-400.0,0.00016438,2]
[378621494,1754928643027,-497.51541895,0.00016438,2]
[378621495,1754928643063,-825.90458105,0.00016438,2]
[378621496,1754928643073,-1589.64,0.00016438,2]
[378621497,1754928643085,-400.0,0.00016438,2]
[378621498,1754928643095,-400.0,0.00016438,2]
[378621499,1754928643104,-344.39929419,0.00016438,2]
[378621500,1754928643115,-422.63,0.00016438,2]
[378621501,1754928643125,-400.0,0.00016438,2]
[378621502,1754928643135,-546.7,0.00016438,2]
[378621503,1754928643145,-400.0,0.00016438,2]
[378621504,1754928643155,-1990.72,0.00016438,2]
[378621505,1754928643172,-1738.13,0.00016438,2]
[378621506,1754928643182,-400.0,0.00016438,2]
[378621507,1754928643192,-400.0,0.00016438,2]
[378621508,1754928643202,-400.0,0.00016438,2]
[378621509,1754928643212,-812.18,0.00016438,2]
[378621510,1754928643221,-400.0,0.00016438,2]
[378621511,1754928643230,-400.0,0.00016438,2]
[378621512,1754928643240,-1240.58,0.00016438,2]
[378621513,1754928643250,-726.02,0.00016438,2]
[378621514,1754928643260,-2261.82,0.00016438,2]
[378621515,1754928643270,-400.0,0.00016438,2]
[378621516,1754928643281,-400.0,0.00016438,2]
[378621517,1754928643291,-756.53,0.00016438,2]
[378621518,1754928643300,-662.32,0.00016438,2]
[378621519,1754928643310,-400.0,0.00016438,2]
[378621520,1754928643322,-1108.59,0.00016438,2]
[378621521,1754928643331,-400.0,0.00016438,2]
[378621522,1754928643341,-400.0,0.00016438,2]
[378621523,1754928643351,-400.0,0.00016438,2]
[378621524,1754928643361,-400.0,0.00016438,2]
[378621525,1754928643370,-400.0,0.00016438,2]
[378621526,1754928643380,-400.0,0.00016438,2]
[378621527,1754928643389,-486.82,0.00016438,2]
[378621528,1754928643399,-478.17,0.00016438,2]
[378621529,1754928643408,-775.8,0.00016438,2]
[378621530,1754928643421,-742.65,0.00016438,2]
[378621531,1754928643430,-623.89,0.00016438,2]
[378621532,1754928643439,-400.0,0.00016438,2]
[378621533,1754928643448,-400.0,0.00016438,2]
[378621534,1754928643458,-250.0,0.00016438,2]
[378621535,1754928643468,-400.0,0.00016438,2]
[378621536,1754928643478,-692.61,0.00016438,2]
[378621537,1754928643487,-1202.88,0.00016438,2]
[378621538,1754928643497,-838.92,0.00016438,2]
[378621539,1754928643507,-400.0,0.00016438,2]
[378621540,1754928643516,-400.0,0.00016438,2]
[378621541,1754928643526,-444.91010361,0.00016438,2]
[378621542,1754928643535,-400.0,0.00016438,2]
[378621543,1754928643545,-547.4,0.00016438,2]
[378621544,1754928643554,-400.0,0.00016438,2]
[378621545,1754928643564,-400.0,0.00016438,2]
[378621546,1754928643574,-400.0,0.00016438,2]
[378621547,1754928643583,-400.0,0.00016438,2]
[378621548,1754928643593,-1077.925,0.00016438,2]
[378621550,1754928643604,-512.62,0.00016438,2]
[378621552,1754928643613,-935.98,0.00016438,2]
[378621554,1754928643623,-1040.74,0.00016438,2]
[378621556,1754928643633,-400.0,0.00016438,2]
[378621557,1754928643643,-726.82,0.00016438,2]
[378621558,1754928643654,-472.31,0.00016438,2]
[378621559,1754928643666,-400.0,0.00016438,2]
[378621560,1754928643676,-400.0,0.00016438,2]
[378621561,1754928643685,-523.25,0.00016438,2]
[378621562,1754928643695,-400.0,0.00016438,2]
[378621563,1754928643705,-400.0,0.00016438,2]
[378621564,1754928643716,-786.14,0.00016438,2]
[378621565,1754928643725,-1447.59,0.00016438,2]
[378621566,1754928643736,-516.85,0.00016438,2]
[378621567,1754928643746,-400.0,0.00016438,2]
[378621568,1754928643755,-1333.25,0.00016438,2]
[378621569,1754928643766,-400.0,0.00016438,2]
[378621570,1754928643776,-511.71383169,0.00016438,2]
[378621571,1754928643786,-1166.59,0.00016438,2]
[378621573,1754928643797,-400.0,0.00016438,2]
[378621575,1754928643807,-400.0,0.00016438,2]
[378621577,1754928643817,-1280.91,0.00016438,2]
[378621579,1754928643827,-841.65,0.00016438,2]
[378621581,1754928643837,-1069.74,0.00016438,2]
[378621583,1754928643847,-407.56,0.00016438,2]
[378621585,1754928643857,-400.0,0.00016438,2]
[378621586,1754928643867,-846.01,0.00016438,2]
[378621587,1754928643877,-400.0,0.00016438,2]
[378621588,1754928643887,-400.0,0.00016438,2]
[378621589,1754928643896,-400.0,0.00016438,2]
[378621590,1754928643906,-400.0,0.00016438,2]
[378621591,1754928643918,-1990.03,0.00016438,2]
[378621592,1754928643928,-400.0,0.00016438,2]
[378621593,1754928643937,-400.0,0.00016438,2]
[378621594,1754928643947,-400.0,0.00016438,2]
[378621595,1754928643957,-400.0,0.00016438,2]
[378621596,1754928643967,-400.0,0.00016438,2]
[378621597,1754928643976,-1058.34,0.00016438,2]
[378621598,1754928643986,-400.0,0.00016438,2]
[378621599,1754928643995,-400.0,0.00016438,2]
[378621600,1754928644005,-411.31,0.00016438,2]
[378621601,1754928644014,-411.31,0.00016438,2]
[378621602,1754928644024,-762.8,0.00016438,2]
[378621603,1754928644033,-400.0,0.00016438,2]
[378621604,1754928644042,-870.76,0.00016438,2]
[378621605,1754928644052,-400.0,0.00016438,2]
[378621606,1754928644061,-798.23,0.00016438,2]
[378621607,1754928644072,-402.97444657,0.00016438,2]
[378621608,1754928644084,-538.82,0.00016438,2]
[378621609,1754928644093,-1073.11,0.00016438,2]
[378621610,1754928644103,-3053.25,0.00016438,2]
[378621611,1754928644112,-400.0,0.00016438,2]
[378621612,1754928644122,-400.0,0.00016438,2]
[378621613,1754928644131,-400.0,0.00016438,2]
[378621615,1754928644140,-1937.53,0.00016438,2]
[378621617,1754928644150,-500.0,0.00016438,2]
[378621618,1754928644159,-500.0,0.00016438,2]
[378621619,1754928644173,-500.0,0.00016438,2]
[378621620,1754928644182,-400.0,0.00016438,2]
[378621621,1754928644191,-400.0,0.00016438,2]
[378621622,1754928644200,-500.0,0.00016438,2]
[378621623,1754928644209,-500.0,0.00016438,2]
[378621624,1754928644218,-500.0,0.00016438,2]
[378621625,1754928644228,-627.63,0.00016438,2]
[378621626,1754928644238,-400.0,0.00016438,2]
[378621627,1754928644248,-1645.07,0.00016438,2]
[378621628,1754928644257,-659.09,0.00016438,2]
[378621629,1754928644267,-400.0,0.00016438,2]
[378621630,1754928644277,-400.0,0.00016438,2]
[378621631,1754928644287,-436.81,0.00016438,2]
[378621632,1754928644297,-400.0,0.00016438,2]
[378621633,1754928644306,-421.23,0.00016438,2]
[378621634,1754928644316,-5796.79,0.00016438,2]
[378621635,1754928644325,-1006.56,0.00016438,2]
[378621636,1754928644335,-400.0,0.00016438,2]
[378621637,1754928644345,-1055.53,0.00016438,2]
[378621638,1754928644354,-400.0,0.00016438,2]
[378621639,1754928644364,-400.0,0.00016438,2]
[378621640,1754928644373,-2550.81,0.00016438,2]
[378621641,1754928644382,-972.8,0.00016438,2]
[378621642,1754928644392,-400.0,0.00016438,2]
[378621643,1754928644402,-400.0,0.00016438,2]
[378621644,1754928644414,-400.0,0.00016438,2]
[378621645,1754928644423,-400.0,0.00016438,2]
[378621646,1754928644434,-818.78,0.00016438,2]
[378621647,1754928644444,-400.0,0.00016438,2]
[378621648,1754928644453,-814.81,0.00016438,2]
[378621649,1754928644463,-400.0,0.00016438,2]
[378621650,1754928644473,-400.0,0.00016438,2]
[378621651,1754928644482,-510.30594556,0.00016438,2]
[378621652,1754928644492,-400.0,0.00016438,2]
[378621653,1754928644501,-400.0,0.00016438,2]
[378621654,1754928644511,-400.0,0.00016438,2]
[378621655,1754928644520,-400.0,0.00016438,2]
[378621656,1754928644530,-1000.0,0.00016438,2]
[378621657,1754928644540,-779.06,0.00016438,2]
[378621658,1754928644549,-400.0,0.00016438,2]
[378621659,1754928644559,-1831.38,0.00016438,2]
[378621660,1754928644568,-2099.59,0.00016438,2]
[378621661,1754928644579,-780.82,0.00016438,2]
[378621662,1754928644588,-400.0,0.00016438,2]
[378621663,1754928644598,-1229.84,0.00016438,2]
[378621664,1754928644608,-1434.75,0.00016438,2]
[378621665,1754928644617,-402.9903296,0.00016438,2]
[378621666,1754928644627,-400.0,0.00016438,2]
[378621667,1754928644636,-1237.67,0.00016438,2]
[378621668,1754928644646,-673.58,0.00016438,2]
[378621669,1754928644656,-400.0,0.00016438,2]
[378621670,1754928644668,-1772.13,0.00016438,2]
[378621671,1754928644678,-732.93,0.00016438,2]
[378621672,1754928644687,-400.0,0.00016438,2]
[378621673,1754928644697,-593.32,0.00016438,2]
[378621674,1754928644707,-1483.07,0.00016438,2]
[378621675,1754928644716,-400.0,0.00016438,2]
[378621676,1754928644726,-400.0,0.00016438,2]
[378621677,1754928644736,-905.74,0.00016438,2]
[378621678,1754928644745,-400.0,0.00016438,2]
[378621679,1754928644755,-400.0,0.00016438,2]
[378621680,1754928644764,-400.0,0.00016438,2]
[378621681,1754928644774,-400.0,0.00016438,2]
[378621682,1754928644783,-1714.18,0.00016438,2]
[378621683,1754928644793,-1330.9,0.00016438,2]
[378621684,1754928644804,-400.0,0.00016438,2]
[378621685,1754928644814,-829.38,0.00016438,2]
[378621686,1754928644823,-400.0,0.00016438,2]
[378621687,1754928644834,-1104.41,0.00016438,2]
[378621688,1754928644844,-400.0,0.00016438,2]
[378621689,1754928644853,-485.38,0.00016438,2]
[378621690,1754928644863,-2451.81,0.00016438,2]
[378621691,1754928644873,-400.0,0.00016438,2]
[378621692,1754928644883,-400.0,0.00016438,2]
[378621693,1754928644894,-1374.07,0.00016438,2]
[378621694,1754928644904,-2900.78,0.00016438,2]
[378621695,1754928644917,-400.0,0.00016438,2]
[378621696,1754928644926,-864.72,0.00016438,2]
[378621697,1754928644936,-400.0,0.00016438,2]
[378621698,1754928644945,-400.0,0.00016438,2]
[378621699,1754928644954,-400.0,0.00016438,2]
[378621700,1754928644964,-842.64,0.00016438,2]
[378621701,1754928644973,-400.0,0.00016438,2]
[378621702,1754928644982,-400.0,0.00016438,2]
[378621703,1754928644991,-412.83,0.00016438,2]
[378621704,1754928645001,-406.80347982,0.00016438,2]
[378621705,1754928645011,-400.0,0.00016438,2]
[378621706,1754928645021,-1521.25,0.00016438,2]
[378621707,1754928645030,-400.0,0.00016438,2]
[378621708,1754928645040,-883.84,0.00016438,2]
[378621709,1754928645050,-2260.71,0.00016438,2]
[378621710,1754928645059,-400.0,0.00016438,2]
[378621711,1754928645070,-997.4,0.00016438,2]
[378621712,1754928645085,-400.0,0.00016438,2]
[378621713,1754928645099,-3547.96,0.00016438,2]
[378621714,1754928645108,-1734.13,0.00016438,2]
[378621715,1754928645119,-455.54,0.00016438,2]
[378621716,1754928645128,-800.59,0.00016438,2]
[378621717,1754928645138,-438.21,0.00016438,2]
[378621718,1754928645147,-400.0,0.00016438,2]
[378621719,1754928645158,-1238.72,0.00016438,2]
[378621720,1754928645170,-559.91,0.00016438,2]
[378621721,1754928645180,-464.09557015,0.00016438,2]
[378621722,1754928645189,-400.0,0.00016438,2]
[378621723,1754928645199,-412.71769291,0.00016438,2]
[378621724,1754928645208,-1607.28,0.00016438,2]
[378621725,1754928645218,-1480.34,0.00016438,2]
[378621726,1754928645227,-577.11,0.00016438,2]
[378621727,1754928645237,-400.0,0.00016438,2]
[378621728,1754928645247,-400.0,0.00016438,2]
[378621729,1754928645256,-512.88,0.00016438,2]
[378621730,1754928645265,-400.0,0.00016438,2]
[378621731,1754928645275,-494.14,0.00016438,2]
[378621732,1754928645284,-633.02,0.00016438,2]
[378621733,1754928645293,-498.63,0.00016438,2]
[378621734,1754928645302,-460.0,0.00016438,2]
[378621735,1754928645311,-400.0,0.00016438,2]
[378621736,1754928645321,-1122.55,0.00016438,2]
[378621737,1754928645330,-2137.0,0.00016438,2]
[378621738,1754928645339,-400.0,0.00016438,2]
[378621739,1754928645349,-400.0,0.00016438,2]
[378621740,1754928645359,-400.0,0.00016438,2]
[378621741,1754928645368,-400.0,0.00016438,2]
[378621742,1754928645378,-771.02,0.00016438,2]
[378621743,1754928645387,-537.96,0.00016438,2]
[378621744,1754928645396,-400.0,0.00016438,2]
[378621745,1754928645406,-2592.83,0.00016438,2]
[378621746,1754928645417,-686.78,0.00016438,2]
[378621747,1754928645426,-2839.43,0.00016438,2]
[378621748,1754928645436,-1205.4,0.00016438,2]
[378621749,1754928645445,-400.0,0.00016438,2]
[378621750,1754928645455,-400.0,0.00016438,2]
[378621751,1754928645464,-406.80876375,0.00016438,2]
[378621752,1754928645474,-2547.31,0.00016438,2]
[378621753,1754928645485,-400.0,0.00016438,2]
[378621754,1754928645494,-2438.97,0.00016438,2]
[378621755,1754928645503,-539.32,0.00016438,2]
[378621756,1754928645512,-921.45,0.00016438,2]
[378621757,1754928645522,-400.0,0.00016438,2]
[378621758,1754928645531,-1886.81,0.00016438,2]
[378621759,1754928645540,-401.41598458,0.00016438,2]
[378621760,1754928645550,-775.12,0.00016438,2]
[378621761,1754928645559,-503.21815634,0.00016438,2]
[378621762,1754928645568,-542.51336683,0.00016438,2]
[378621763,1754928645578,-1125.69,0.00016438,2]
[378621764,1754928645587,-403.72992674,0.00016438,2]
[378621765,1754928645597,-400.0,0.00016438,2]
[378621766,1754928645607,-1782.05,0.00016438,2]
[378621767,1754928645618,-400.0,0.00016438,2]
[378621768,1754928645629,-712.41,0.00016438,2]
[378621769,1754928645638,-400.0,0.00016438,2]
[378621770,1754928645648,-2688.74,0.00016438,2]
[378621771,1754928645657,-781.84,0.00016438,2]
[378621773,1754928645669,-507.13,0.00016438,2]
[378621774,1754928645678,-324.14862153,0.00016438,2]
[378621776,1754928645688,-584.88,0.00016438,2]
[378621777,1754928645698,-396.68754065,0.00016438,2]
[378621778,1754928645707,-400.0,0.00016438,2]
[378621779,1754928645716,-400.0,0.00016438,2]
[378621780,1754928645726,-2651.97,0.00016438,2]
[378621781,1754928645735,-400.0,0.00016438,2]
[378621782,1754928645744,-400.0,0.00016438,2]
[378621783,1754928645754,-3946.43,0.00016438,2]
[378621784,1754928645763,-2001.79,0.00016438,2]
[378621785,1754928645772,-776.33,0.00016438,2]
[378621786,1754928645782,-1028.56,0.00016438,2]
[378621787,1754928645791,-400.66835457,0.00016438,2]
[378621788,1754928645801,-2354.42292437,0.00016438,2]
[378621791,1754928646314,-675.13488109,0.00016438,2]
[378621793,1754928646325,-351.15219454,0.00016438,2]
[378621795,1754928646335,-467.61,0.00016438,2]
[378621797,1754928646344,-1627.2,0.00016438,2]
[378621799,1754928646353,-400.0,0.00016438,2]
[378621801,1754928646363,-400.0,0.00016438,2]
[378621803,1754928646372,-1339.26,0.00016438,2]
[378621805,1754928646381,-400.0,0.00016438,2]
[378621807,1754928646390,-400.0,0.00016438,2]
[378621809,1754928646400,-400.0,0.00016438,2]
[378621810,1754928646409,-183.171588,0.00016438,2]
[378621812,1754928646420,-400.0,0.00016438,2]
[378621814,1754928646429,-3448.93,0.00016438,2]
[378621816,1754928646438,-400.0,0.00016438,2]
[378621818,1754928646447,-898.18,0.00016438,2]
[378621820,1754928646456,-2370.36,0.00016438,2]
[378621822,1754928646465,-400.0,0.00016438,2]
[378621824,1754928646474,-867.92223888,0.00016438,2]
[378621826,1754928646486,-220.75776112,0.00016438,2]
[378621828,1754928646496,-1229.86,0.00016438,2]
[378621830,1754928646505,-400.0,0.00016438,2]
[378621832,1754928646514,-400.0,0.00016438,2]
[378621834,1754928646524,-337.12886725,0.00016438,2]
[378621849,1754928646615,-424.41113275,0.00016438,2]
[378621851,1754928646625,-1045.14,0.00016438,2]
[378621853,1754928646634,-400.0,0.00016438,2]
[378621855,1754928646644,-435.73,0.00016438,2]
[378621857,1754928646654,-1305.13,0.00016438,2]
[378621858,1754928646665,-1228.5,0.00016438,2]
[378621859,1754928646674,-400.0,0.00016438,2]
[378621860,1754928646683,-1728.74,0.00016438,2]
[378621861,1754928646695,-400.0,0.00016438,2]
[378621862,1754928646704,-953.83,0.00016438,2]
[378621863,1754928646713,-400.0,0.00016438,2]
[378621864,1754928646722,-306.97736391,0.00016438,2]
[378621865,1754928646732,-400.0,0.00016438,2]
[378621866,1754928646742,-1799.01,0.00016438,2]
[378621867,1754928646752,-957.23,0.00016438,2]
[378621868,1754928646762,-400.0,0.00016438,2]
[378621869,1754928647034,-400.0,0.00016438,2]
[378621870,1754928647045,-665.63,0.00016438,2]
[378621871,1754928647055,-491.88,0.00016438,2]
[378621872,1754928647065,-1240.64,0.00016438,2]
[378621873,1754928647077,-468.61,0.00016438,2]
[378621874,1754928647089,-400.0,0.00016438,2]
[378621875,1754928647099,-400.0,0.00016438,2]
[378621876,1754928647109,-300.0,0.00016438,2]
[378621877,1754928647121,-515.21,0.00016438,2]
[378621878,1754928647131,-951.94,0.00016438,2]
[378621879,1754928647141,-400.0,0.00016438,2]
[378621880,1754928647151,-688.18,0.00016438,2]
[378621881,1754928647161,-4574.56,0.00016438,2]
[378621882,1754928647173,-1127.37,0.00016438,2]
[378621883,1754928647183,-474.2742137,0.00016438,2]
[378621884,1754928647193,-506.61586848,0.00016438,2]
[378621885,1754928647202,-1152.05,0.00016438,2]
[378621886,1754928647212,-400.0,0.00016438,2]
[378621887,1754928647222,-400.0,0.00016438,2]
[378621888,1754928647232,-747.98,0.00016438,2]
[378621889,1754928647242,-1325.18,0.00016438,2]
[378621890,1754928647252,-400.0,0.00016438,2]
[378621891,1754928647262,-668.38,0.00016438,2]
[378621892,1754928647273,-400.0,0.00016438,2]
[378621893,1754928647283,-1351.74,0.00016438,2]
[378621894,1754928647293,-1042.73,0.00016438,2]
[378621895,1754928647304,-400.0,0.00016438,2]
[378621896,1754928647314,-528.3,0.00016438,2]
[378621897,1754928647324,-1215.24,0.00016438,2]
[378621898,1754928647334,-1434.74,0.00016438,2]
[378621899,1754928647348,-1634.63,0.00016438,2]
[378621900,1754928647363,-400.0,0.00016438,2]
[378621901,1754928647372,-3826.81,0.00016438,2]
[378621902,1754928647382,-1476.2,0.00016438,2]
[378621903,1754928647392,-400.0,0.00016438,2]
[378621904,1754928647401,-429.4,0.00016438,2]
[378621905,1754928647411,-400.0,0.00016438,2]